lending/lending_fUSD_20240111
["ID","MTS","AMOUNT","RATE_DAILY","PERIOD"]
[311214467,1704984641333,-500.0,0.00042465,30]
[311214468,1704984641342,-500.0,0.00042465,30]
[311214469,1704984641351,-500.0,0.00042465,30]
[311214470,1704984641361,-500.0,0.00042465,30]
[311214471,1704984641370,-500.0,0.00042465,30]
[311214472,1704984641379,-500.0,0.00042465,30]
[311214473,1704984641389,-500.0,0.00042465,30]
[311214474,1704984641399,-500.0,0.00042465,30]
[311214475,1704984641408,-500.0,0.00042465,30]
[311214476,1704984641417,-500.0,0.00042465,30]
[311214477,1704984641427,-500.0,0.00042465,30]
[311214478,1704984641437,-500.0,0.00042465,30]
[311214479,1704984641446,-500.0,0.00042465,30]
[311214480,1704984641455,-500.0,0.00042465,30]
[311214481,1704984641464,-500.0,0.00042465,30]
[311214482,1704984641473,-500.0,0.00042465,30]
[311214483,1704984641483,-500.0,0.00042465,30]
[311214484,1704984641492,-500.0,0.00042465,30]
[311214485,1704984641502,-500.0,0.00042465,30]
[311214486,1704984641511,-817.75,0.00042465,30]
[311214487,1704984641521,-500.0,0.00042465,30]
[311214488,1704984641530,-500.0,0.00042465,30]
[311214489,1704984641540,-500.0,0.00042465,4]
[311214490,1704984641551,-500.0,0.00042465,30]
[311214491,1704984641561,-500.0,0.00042465,30]
[311214492,1704984641569,-500.0,0.00042465,30]
[311214494,1704984641579,-500.0,0.00042465,30]
[311214496,1704984641588,-500.0,0.00042465,30]
[311214498,1704984641597,-500.0,0.00042465,30]
[311214500,1704984641606,-500.0,0.00042465,30]
[311214501,1704984641615,-500.0,0.00042465,30]
[311214502,1704984641624,-500.0,0.00042465,30]
[311214503,1704984641634,-500.0,0.00042465,30]
[311214504,1704984641643,-500.0,0.00042465,30]
[311214505,1704984641654,-500.0,0.00042465,30]
[311214507,1704984641663,-500.0,0.00042465,30]
[311214508,1704984641672,-500.0,0.00042465,30]
[311214509,1704984641681,-500.0,0.00042465,30]
[311214510,1704984641690,-500.0,0.00042465,30]
[311214511,1704984641700,-500.0,0.00042465,30]
[311214512,1704984641710,-500.0,0.00042465,30]
[311214513,1704984641720,-500.0,0.00042465,30]
[311214514,1704984641730,-500.0,0.00042465,30]
[311214515,1704984641740,-500.0,0.00042465,30]
[311214516,1704984641750,-215.27497089,0.00042465,30]
[311214517,1704984641760,-500.0,0.00042465,30]
[311214518,1704984641770,-500.0,0.00042465,30]
[311214519,1704984641780,-500.0,0.00042465,30]
[311214520,1704984641789,-500.0,0.00042465,30]
[311214521,1704984641802,-500.0,0.00042465,30]
[311214522,1704984641812,-500.0,0.00042465,30]
[311214523,1704984641822,-500.0,0.00042465,30]
[311214524,1704984641831,-506.42473649,0.00042465,30]
[311214525,1704984641840,-500.0,0.00042465,30]
[311214526,1704984641850,-1502.63,0.00042465,30]
[311214527,1704984641859,-500.0,0.00042465,30]
[311214528,1704984641868,-500.0,0.00042465,30]
[311214529,1704984641877,-500.0,0.00042465,30]
[311214530,1704984641887,-500.0,0.00042465,30]
[311214531,1704984641896,-500.0,0.00042465,30]
[311214532,1704984641905,-500.0,0.00042465,30]
[311214533,1704984641914,-500.0,0.00042465,30]
[311214534,1704984641924,-500.0,0.00042465,30]
[311214535,1704984641934,-500.0,0.00042465,30]
[311214536,1704984641943,-508.01838918,0.00042465,30]
[311214537,1704984641952,-3770.01,0.00042465,5]
[311214538,1704984641961,-500.0,0.00042465,30]
[311214539,1704984641970,-500.0,0.00042465,30]
[311214540,1704984641980,-500.0,0.00042465,30]
[311214541,1704984641989,-500.0,0.00042465,30]
[311214542,1704984641998,-355.1718978,0.00042465,30]
[311214543,1704984642008,-512.41629308,0.00042465,30]
[311214544,1704984642017,-500.0,0.00042465,30]
[311214545,1704984642027,-500.0,0.00042465,30]
[311214546,1704984642036,-500.0,0.00042465,30]
[311214547,1704984642047,-500.0,0.00042465,30]
[311214548,1704984642056,-168.13,0.00042465,30]
[311214549,1704984642065,-500.0,0.00042465,30]
[311214550,1704984642077,-500.0,0.00042465,30]
[311214551,1704984642086,-500.0,0.00042465,30]
[311214552,1704984642096,-439.17,0.00042465,30]
[311214553,1704984642106,-500.0,0.00042465,30]
[311214554,1704984642115,-500.0,0.00042465,30]
[311214555,1704984642125,-477.4186867,0.00042465,30]
[311214556,1704984642134,-500.0,0.00042465,30]
[311214557,1704984642145,-500.0,0.00042465,30]
[311214558,1704984642154,-500.0,0.00042465,30]
[311214559,1704984642164,-500.0,0.00042465,30]
[311214560,1704984642174,-500.0,0.00042465,30]
[311214561,1704984642183,-500.0,0.00042465,30]
[311214562,1704984642193,-500.0,0.00042465,30]
[311214563,1704984642206,-500.0,0.00042465,30]
[311214564,1704984642216,-500.0,0.00042465,30]
[311214565,1704984642225,-500.0,0.00042465,30]
[311214566,1704984642235,-500.0,0.00042465,30]
[311214567,1704984642244,-500.0,0.00042465,30]
[311214568,1704984642254,-508.68359406,0.00042465,30]
[311214569,1704984642264,-500.0,0.00042465,30]
[311214570,1704984642273,-500.0,0.00042465,30]
[311214571,1704984642283,-500.0,0.00042465,30]
[311214572,1704984642293,-500.0,0.00042465,30]
[311214573,1704984642302,-500.0,0.00042465,30]
[311214574,1704984642312,-500.0,0.00042465,30]
[311214575,1704984642322,-500.0,0.00042465,30]
[311214576,1704984642332,-500.0,0.00042465,30]
[311214577,1704984642342,-500.0,0.00042465,30]
[311214578,1704984642352,-500.0,0.00042465,30]
[311214579,1704984642362,-500.0,0.00042465,30]
[311214580,1704984642373,-500.0,0.00042465,30]
[311214581,1704984642383,-500.0,0.00042465,30]
[311214583,1704984642392,-500.0,0.00042465,5]
[311214584,1704984642401,-500.0,0.00042465,30]
[311214586,1704984642411,-500.0,0.00042465,30]
[311214588,1704984642421,-500.0,0.00042465,30]
[311214590,1704984642431,-500.0,0.00042465,30]
[311214592,1704984642440,-500.0,0.00042465,30]
[311214594,1704984642450,-500.0,0.00042465,30]
[311214596,1704984642460,-500.0,0.00042465,30]
[311214599,1704984642470,-500.0,0.00042465,30]
[311214600,1704984642479,-529.13863386,0.00042465,30]
[311214601,1704984642489,-411.35727191,0.00042465,30]
[311214603,1704984642498,-500.0,0.00042465,30]
[311214604,1704984642508,-500.0,0.00042465,30]
[311214606,1704984642520,-500.0,0.00042465,30]
[311214611,1704984642532,-500.0,0.00042465,30]
[311214614,1704984642544,-500.0,0.00042466,2]
[311214617,1704984642553,-302.0,0.00042486,4]
[311214619,1704984642565,-450.0,0.000425,3]
[311214620,1704984642574,-350.0,0.00042548,120]
[311214621,1704984642584,-200.0,0.00042622,20]
[311214623,1704984642593,-800.0,0.00042622,20]
[311214625,1704984642603,-206.40356978,0.00042639,17]
[311214628,1704984642624,-500.0,0.00042681,7]
[311214630,1704984642635,-744.56,0.00042681,7]
[311214632,1704984642644,-151.65502899,0.00042695,7]
[311214636,1704984642654,-1007.4005469,0.00042718,17]
[311214639,1704984642664,-152.0,0.00042724,4]
[311214641,1704984642674,-94857.3732855,0.00042729,9]
[311214643,1704984642683,-330.08,0.00042739,30]
[311214644,1704984642692,-265.36,0.00042739,30]
[311214645,1704984642702,-500.0,0.00042739,30]
[311214646,1704984642711,-500.0,0.00042739,30]
[311214647,1704984642721,-500.0,0.00042739,30]
[311214648,1704984642731,-500.0,0.00042739,30]
[311214649,1704984642740,-460.51,0.00042739,30]
[311214652,1704984642751,-500.0,0.00042739,30]
[311214655,1704984642762,-500.0,0.00042739,30]
[311214658,1704984642772,-500.0,0.00042739,30]
[311214661,1704984642782,-562.21091805,0.00042739,30]
[311214664,1704984642794,-500.0,0.00042739,30]
[311214667,1704984642803,-500.0,0.00042739,30]
[311214670,1704984642813,-500.0,0.00042739,30]
[311214672,1704984642823,-500.0,0.00042739,30]
[311214673,1704984642832,-500.0,0.00042739,30]
[311214674,1704984642841,-500.0,0.00042739,30]
[311214675,1704984642851,-500.0,0.00042739,30]
[311214676,1704984642861,-500.0,0.00042739,30]
[311214677,1704984642870,-500.0,0.00042739,30]
[311214678,1704984642880,-500.0,0.00042739,30]
[311214679,1704984642889,-500.0,0.00042739,30]
[311214680,1704984642899,-500.0,0.00042739,30]
[311214681,1704984642909,-500.0,0.00042739,30]
[311214682,1704984642918,-500.0,0.00042739,30]
[311214683,1704984642928,-500.0,0.00042739,30]
[311214684,1704984642937,-500.0,0.00042739,30]
[311214685,1704984642946,-500.0,0.00042739,30]
[311214686,1704984642956,-508.70199194,0.00042739,30]
[311214687,1704984642965,-500.0,0.00042739,30]
[311214688,1704984642975,-500.0,0.00042739,30]
[311214689,1704984642985,-500.0,0.00042739,30]
[311214690,1704984642994,-263.92,0.00042739,30]
[311214691,1704984643003,-500.0,0.00042739,30]
[311214692,1704984643012,-500.0,0.00042739,30]
[311214693,1704984643022,-500.0,0.00042739,30]
[311214694,1704984643031,-500.0,0.00042739,30]
[311214695,1704984643040,-512.07,0.00042739,30]
[311214696,1704984643052,-407.38,0.00042739,30]
[311214697,1704984643061,-500.0,0.00042739,30]
[311214698,1704984643071,-500.0,0.00042739,30]
[311214699,1704984643081,-245.02,0.00042739,30]
[311214700,1704984643091,-568.6,0.00042739,30]
[311214701,1704984643100,-500.0,0.00042739,30]
[311214702,1704984643110,-492.46050138,0.00042739,30]
[311214703,1704984643119,-500.0,0.00042739,30]
[311214704,1704984643129,-500.0,0.00042739,30]
[311214705,1704984643138,-500.0,0.00042739,30]
[311214706,1704984643147,-500.0,0.00042739,30]
[311214707,1704984643157,-500.0,0.00042739,30]
[311214708,1704984643166,-500.0,0.00042739,30]
[311214709,1704984643176,-500.0,0.00042739,30]
[311214710,1704984643186,-500.0,0.00042739,30]
[311214711,1704984643195,-499.9,0.00042739,30]
[311214712,1704984643208,-500.0,0.00042739,30]
[311214713,1704984643217,-500.0,0.00042739,30]
[311214714,1704984643226,-500.0,0.00042739,30]
[311214715,1704984643235,-500.0,0.00042739,30]
[311214716,1704984643246,-500.0,0.00042739,30]
[311214717,1704984643255,-500.0,0.00042739,30]
[311214718,1704984643265,-284.75730484,0.00042739,30]
[311214719,1704984643275,-153.77611812,0.00042739,30]
[311214720,1704984643284,-500.0,0.00042739,30]
[311214721,1704984643294,-500.0,0.00042739,30]
[311214722,1704984643304,-500.0,0.00042739,30]
[311214723,1704984643313,-500.0,0.00042739,30]
[311214724,1704984643323,-500.0,0.00042739,30]
[311214725,1704984643332,-500.0,0.00042739,30]
[311214726,1704984643342,-500.0,0.00042739,30]
[311214727,1704984643351,-542.11615679,0.00042739,30]
[311214728,1704984643361,-600.76,0.00042739,30]
[311214729,1704984643370,-500.0,0.00042739,30]
[311214730,1704984643380,-178.10358092,0.00042739,30]
[311214731,1704984643389,-500.0,0.00042739,30]
[311214732,1704984643399,-500.0,0.00042739,30]
[311214733,1704984643409,-500.0,0.00042739,30]
[311214734,1704984643419,-500.0,0.00042739,30]
[311214735,1704984643428,-500.0,0.00042739,30]
[311214736,1704984643438,-2818.21,0.00042739,5]
[311214737,1704984643449,-500.0,0.00042739,30]
[311214738,1704984643459,-184.21,0.00042739,30]
[311214739,1704984643469,-500.0,0.00042739,30]
[311214740,1704984643479,-500.0,0.00042739,30]
[311214741,1704984643489,-500.0,0.00042739,30]
[311214742,1704984643499,-500.0,0.00042739,30]
[311214743,1704984643508,-500.0,0.00042739,30]
[311214744,1704984643518,-564.7,0.00042739,30]
[311214745,1704984643528,-500.0,0.00042739,30]
[311214746,1704984643537,-500.0,0.00042739,30]
[311214747,1704984643548,-500.0,0.00042739,30]
[311214748,1704984643558,-500.0,0.00042739,30]
[311214749,1704984643568,-513.37,0.00042739,30]
[311214750,1704984643577,-500.0,0.00042739,30]
[311214751,1704984643587,-500.0,0.00042739,30]
[311214752,1704984643597,-500.0,0.00042739,30]
[311214753,1704984643607,-500.0,0.00042739,30]
[311214754,1704984643617,-500.0,0.00042739,30]
[311214755,1704984643627,-500.0,0.00042739,30]
[311214756,1704984643637,-500.0,0.00042739,30]
[311214757,1704984643647,-581.93,0.00042739,30]
[311214758,1704984643657,-500.0,0.00042739,30]
[311214759,1704984643667,-500.0,0.00042739,30]
[311214760,1704984643677,-500.0,0.00042739,30]
[311214761,1704984643687,-500.0,0.00042739,30]
[311214762,1704984643697,-500.0,0.00042739,30]
[311214763,1704984643707,-500.0,0.00042739,30]
[311214764,1704984643717,-500.0,0.00042739,30]
[311214765,1704984643726,-500.0,0.00042739,30]
[311214766,1704984643736,-500.0,0.00042739,30]
[311214767,1704984643746,-500.0,0.00042739,30]
[311214768,1704984643756,-500.0,0.00042739,30]
[311214769,1704984643766,-500.0,0.00042739,30]
[311214770,1704984643777,-500.0,0.00042739,30]
[311214771,1704984643786,-500.0,0.00042739,30]
[311214772,1704984643798,-500.0,0.00042739,30]
[311214773,1704984643808,-500.0,0.00042739,30]
[311214774,1704984643818,-185.25,0.00042739,30]
[311214775,1704984643828,-500.0,0.00042739,30]
[311214776,1704984643838,-500.0,0.00042739,30]
[311214777,1704984643848,-192.2,0.00042739,30]
[311214778,1704984643858,-500.0,0.00042739,30]
[311214779,1704984643868,-500.0,0.00042739,30]
[311214780,1704984643878,-626.35,0.00042739,30]
[311214781,1704984643888,-500.0,0.00042739,30]
[311214782,1704984643898,-500.0,0.00042739,30]
[311214783,1704984643908,-500.0,0.00042739,30]
[311214784,1704984643918,-500.0,0.00042739,30]
[311214785,1704984643928,-500.0,0.00042739,30]
[311214786,1704984643938,-500.0,0.00042739,30]
[311214787,1704984643948,-500.0,0.00042739,30]
[311214789,1704984643959,-500.0,0.00042739,30]
[311214791,1704984643968,-3990.45,0.00042739,30]
[311214793,1704984643978,-500.0,0.00042739,30]
[311214795,1704984643988,-500.0,0.00042739,30]
[311214797,1704984643998,-500.0,0.00042739,30]
[311214799,1704984644008,-273.31252295,0.00042739,30]
[311214801,1704984644018,-632.49,0.00042739,30]
[311214803,1704984644028,-500.0,0.00042739,30]
[311214805,1704984644038,-500.0,0.00042739,30]
[311214807,1704984644049,-500.0,0.00042739,30]
[311214809,1704984644059,-500.0,0.00042739,30]
[311214811,1704984644068,-500.0,0.00042739,30]
[311214813,1704984644077,-403.31,0.00042739,30]
[311214815,1704984644088,-500.0,0.00042739,30]
[311214818,1704984644098,-500.0,0.00042739,30]
[311214819,1704984644107,-500.0,0.00042739,30]
[311214822,1704984644117,-817.75,0.00042739,30]
[311214823,1704984644127,-500.0,0.00042739,30]
[311214826,1704984644137,-500.0,0.00042739,4]
[311214828,1704984644148,-500.0,0.00042739,30]
[311214830,1704984644157,-500.0,0.00042739,30]
[311214832,1704984644167,-497.53,0.00042739,30]
[311214834,1704984644178,-500.0,0.00042739,30]
[311214836,1704984644188,-500.0,0.00042739,30]
[311214838,1704984644199,-560.01,0.00042739,30]
[311214840,1704984644209,-500.0,0.00042739,30]
[311214842,1704984644218,-500.0,0.00042739,30]
[311214844,1704984644228,-502.4,0.00042739,30]
[311214846,1704984644238,-500.0,0.00042739,30]
[311214848,1704984644248,-559.19818709,0.00042739,30]
[311214850,1704984644258,-500.0,0.00042739,30]
[311214852,1704984644268,-508.38,0.00042739,30]
[311214854,1704984644278,-500.0,0.00042739,30]
[311214856,1704984644288,-500.0,0.00042739,30]
[311214858,1704984644299,-500.0,0.00042739,30]
[311214860,1704984644309,-500.0,0.00042739,30]
[311214862,1704984644320,-1502.63,0.00042739,30]
[311214878,1704984644483,-500.0,0.00042739,30]
[311214879,1704984644493,-500.0,0.00042739,30]
[311214881,1704984644504,-500.0,0.00042739,30]
[311214883,1704984644514,-500.0,0.00042739,30]
[311214885,1704984644523,-500.0,0.00042739,30]
[311214887,1704984644533,-500.0,0.00042739,30]
[311214889,1704984644544,-3770.01,0.00042739,5]
[311214893,1704984644568,-500.0,0.00042739,30]
[311214895,1704984644578,-500.0,0.00042739,30]
[311214897,1704984644588,-500.0,0.00042739,30]
[311214899,1704984644599,-500.0,0.00042739,30]
[311214901,1704984644610,-500.0,0.00042739,30]
[311214904,1704984644633,-500.0,0.00042739,30]
[311214906,1704984644643,-500.0,0.00042739,30]
[311214908,1704984644655,-500.0,0.00042739,30]
[311214910,1704984644666,-500.0,0.00042739,30]
[311214912,1704984644675,-500.0,0.00042739,30]
[311214914,1704984644685,-500.0,0.00042739,30]
[311214916,1704984644696,-500.0,0.00042739,30]
[311214918,1704984644705,-500.0,0.00042739,30]
[311214920,1704984644715,-500.0,0.00042739,30]
[311214922,1704984644725,-278.06537807,0.00042739,30]
[311214923,1704984644734,-500.0,0.00042739,30]
[311214924,1704984644747,-500.0,0.00042739,30]
[311214925,1704984644758,-500.0,0.00042739,30]
[311214926,1704984644769,-304.45861619,0.00042739,30]
[311214927,1704984644780,-500.0,0.00042739,30]
[311214928,1704984644790,-500.0,0.00042739,30]
[311214929,1704984644801,-500.0,0.00042739,30]
[311214930,1704984644811,-539.22,0.00042739,30]
[311214931,1704984644821,-500.0,0.00042739,30]
[311214932,1704984644831,-500.0,0.00042739,30]
[311214933,1704984644841,-408.94,0.00042791,2]
[311214934,1704984644850,-151.7,0.00042808,2]
[311214935,1704984644860,-200.87389146,0.00042895,5]
[311214936,1704984644870,-3284.51114286,0.000429,30]
[311214938,1704984644879,-269.10868201,0.000429,30]
[311214940,1704984644889,-507.156143,0.000429,3]
[311214942,1704984644899,-150.0,0.000429,34]
[311214944,1704984644908,-1956.74558027,0.000429,30]
[311214946,1704984644918,-500.0,0.00042955,7]
[311214948,1704984644927,-167.23,0.00042967,2]
[311214950,1704984644937,-1007.4005469,0.00042991,17]
[311214952,1704984644947,-800.0,0.00043,3]
[311214954,1704984644956,-157.0,0.00043,90]
[311214956,1704984644965,-5122.55046978,0.00043,5]
[311214958,1704984644974,-641.10169788,0.00043,4]
[311214960,1704984644984,-199.23011501,0.00043,4]
[311214962,1704984644994,-500.0,0.00043,4]
[311214964,1704984645003,-420.84786215,0.00043,4]
[311214967,1704984645014,-480.82627341,0.00043,7]
[311214969,1704984645023,-500.0,0.00043,7]
[311214971,1704984645033,-500.0,0.00043,4]
[311214973,1704984645044,-500.0,0.00043,7]
[311214974,1704984645054,-524.42258626,0.00043,7]
[311214977,1704984645065,-500.0,0.00043,4]
[311214979,1704984645074,-500.0,0.00043,4]
[311214980,1704984645083,-329.92474423,0.00043,7]
[311214983,1704984645093,-439.89965898,0.00043,4]
[311214985,1704984645102,-500.0,0.00043,7]
[311214987,1704984645111,-500.0,0.00043,4]
[311214989,1704984645121,-232.09011804,0.00043,2]
[311214991,1704984645131,-161.0,0.00043,90]
[311214993,1704984645141,-1500.0,0.00043,120]
[311214995,1704984645151,-1500.0,0.00043,120]
[311214997,1704984645162,-436.16067244,0.00043,4]
[311214999,1704984645172,-500.0,0.00043013,30]
[311215001,1704984645181,-500.0,0.00043013,30]
[311215003,1704984645191,-622.61,0.00043013,30]
[311215005,1704984645203,-351.79653292,0.00043013,30]
[311215007,1704984645214,-397.9,0.00043013,30]
[311215009,1704984645223,-500.0,0.00043013,30]
[311215011,1704984645232,-365.67,0.00043013,30]
[311215013,1704984645243,-248.7,0.00043013,30]
[311215015,1704984645253,-359.32,0.00043013,30]
[311215017,1704984645263,-500.0,0.00043013,30]
[311215020,1704984645273,-500.0,0.00043013,30]
[311215022,1704984645284,-500.0,0.00043013,30]
[311215025,1704984645296,-500.0,0.00043013,30]
[311215028,1704984645306,-2818.21,0.00043013,5]
[311215031,1704984645315,-500.0,0.00043013,30]
[311215033,1704984645325,-386.17,0.00043013,30]
[311215035,1704984645335,-500.0,0.00043013,30]
[311215038,1704984645345,-564.7,0.00043013,30]
[311215039,1704984645355,-325.45972726,0.00043013,30]
[311215042,1704984645365,-500.0,0.00043013,30]
[311215044,1704984645374,-500.0,0.00043013,30]
[311215046,1704984645384,-500.0,0.00043013,30]
[311215049,1704984645394,-500.0,0.00043013,30]
[311215051,1704984645403,-500.0,0.00043013,30]
[311215053,1704984645413,-418.83,0.00043013,30]
[311215055,1704984645423,-476.12,0.00043013,30]
[311215057,1704984645432,-500.0,0.00043013,30]
[311215059,1704984645442,-500.0,0.00043013,30]
[311215061,1704984645453,-240.59,0.00043013,30]
[311215063,1704984645463,-500.0,0.00043013,30]
[311215065,1704984645473,-500.0,0.00043013,30]
[311215067,1704984645483,-3990.45,0.00043013,30]
[311215069,1704984645493,-500.0,0.00043013,30]
[311215071,1704984645503,-500.0,0.00043013,30]
[311215073,1704984645513,-500.0,0.00043013,30]
[311215075,1704984645524,-500.0,0.00043013,30]
[311215077,1704984645534,-817.75,0.00043013,30]
[311215079,1704984645548,-500.0,0.00043013,30]
[311215081,1704984645559,-500.0,0.00043013,30]
[311215083,1704984645570,-500.0,0.00043013,30]
[311215085,1704984645581,-500.0,0.00043013,30]
[311215087,1704984645592,-337.70240682,0.00043013,30]
[311215089,1704984645603,-500.0,0.00043013,30]
[311215091,1704984645615,-340.37,0.00043013,30]
[311215093,1704984645626,-1502.63,0.00043013,30]
[311215095,1704984645637,-500.0,0.00043013,30]
[311215097,1704984645649,-500.0,0.00043013,30]
[311215099,1704984645659,-500.0,0.00043013,30]
[311215101,1704984645669,-3770.01,0.00043013,5]
[311215103,1704984645679,-500.0,0.00043013,30]
[311215105,1704984645690,-500.0,0.00043013,30]
[311215107,1704984645700,-500.0,0.00043013,30]
[311215108,1704984645713,-500.0,0.00043013,30]
[311215111,1704984645724,-500.0,0.00043013,30]
[311215112,1704984645734,-500.0,0.00043013,30]
[311215115,1704984645744,-500.0,0.00043013,30]
[311215116,1704984645754,-437.09,0.00043013,30]
[311215119,1704984645764,-500.0,0.00043013,30]
[311215121,1704984645774,-500.0,0.00043013,30]
[311215123,1704984645784,-479.35424498,0.00043013,30]
[311215125,1704984645797,-153.84,0.00043085,2]
[311215127,1704984645807,-171.0,0.00043127,2]
[311215129,1704984645817,-2002.68,0.0004318,2]
[311215131,1704984645827,-186.35,0.00043186,2]
[311215133,1704984645837,-604.0,0.000432,7]
[311215135,1704984645846,-233.0,0.00043221,28]
[311215137,1704984645856,-500.0,0.00043228,7]
[311215139,1704984645867,-1007.4005469,0.00043264,18]
[311215141,1704984645877,-150.53030045,0.00043274,19]
[311215143,1704984645886,-468.25,0.00043287,30]
[311215145,1704984645897,-500.0,0.00043287,30]
[311215147,1704984645908,-500.0,0.00043287,30]
[311215149,1704984645918,-500.0,0.00043287,30]
[311215151,1704984645929,-2818.21,0.00043287,5]
[311215153,1704984645940,-500.0,0.00043287,30]
[311215155,1704984645950,-500.0,0.00043287,30]
[311215157,1704984645961,-564.7,0.00043287,30]
[311215159,1704984645972,-500.0,0.00043287,30]
[311215161,1704984645983,-500.0,0.00043287,30]
[311215163,1704984645993,-500.0,0.00043287,30]
[311215165,1704984646003,-258.8,0.00043287,30]
[311215167,1704984646014,-500.0,0.00043287,30]
[311215169,1704984646024,-500.0,0.00043287,30]
[311215171,1704984646036,-500.0,0.00043287,30]
[311215173,1704984646049,-500.0,0.00043287,30]
[311215175,1704984646060,-3990.45,0.00043287,30]
[311215177,1704984646071,-500.0,0.00043287,30]
[311215179,1704984646082,-500.0,0.00043287,30]
[311215181,1704984646092,-402.16,0.00043287,30]
[311215183,1704984646103,-500.0,0.00043287,30]
[311215185,1704984646113,-817.75,0.00043287,30]
[311215187,1704984646124,-500.0,0.00043287,30]
[311215189,1704984646135,-500.0,0.00043287,30]
[311215191,1704984646146,-500.0,0.00043287,30]
[311215193,1704984646157,-1502.63,0.00043287,30]
[311215195,1704984646168,-500.0,0.00043287,30]
[311215197,1704984646178,-3770.01,0.00043287,5]
[311215199,1704984646190,-500.0,0.00043287,30]
[311215201,1704984646202,-500.0,0.00043287,30]
[311215203,1704984646213,-500.0,0.00043287,30]
[311215205,1704984646223,-500.0,0.00043287,30]
[311215207,1704984646234,-500.0,0.00043287,30]
[311215209,1704984646245,-500.0,0.00043287,30]
[311215211,1704984646256,-179.86239051,0.000433,30]
[311215213,1704984646266,-150.0,0.00043389,60]
[311215214,1704984646276,-350.0,0.00043397,120]
[311215216,1704984646286,-2013.870058,0.000434,2]
[311215218,1704984646297,-150.0,0.00043448,2]
[311215220,1704984646307,-223.28251632,0.00043474,11]
[311215222,1704984646317,-2092.2,0.000435,30]
[311215224,1704984646327,-500.0,0.00043501,7]
[311215226,1704984646337,-1007.4005469,0.00043536,18]
[311215228,1704984646347,-389.09509,0.0004356,19]
[311215230,1704984646357,-500.0,0.00043561,30]
[311215232,1704984646367,-500.0,0.00043561,30]
[311215234,1704984646377,-577.04071454,0.00043561,30]
[311215236,1704984646387,-2818.21,0.00043561,5]
[311215238,1704984646397,-500.0,0.00043561,30]
[311215240,1704984646406,-500.0,0.00043561,30]
[311215242,1704984646416,-564.7,0.00043561,30]
[311215244,1704984646426,-500.0,0.00043561,30]
[311215247,1704984646436,-406.05,0.00043561,30]
[311215249,1704984646446,-500.0,0.00043561,30]
[311215251,1704984646456,-500.0,0.00043561,30]
[311215253,1704984646465,-500.0,0.00043561,30]
[311215254,1704984646474,-500.0,0.00043561,30]
[311215256,1704984646484,-157.63,0.00043561,30]
[311215258,1704984646493,-3990.45,0.00043561,30]
[311215260,1704984646503,-500.0,0.00043561,30]